Cogmind - Beta 15 @@@ ROGUE MODE // 2025.10.18 @ 12:16:15 Player: Great Strength True Martial Result: Destroyed by G-47 Trooper with Particle Gun Performance ------------- Evolutions (0) 0 Regions Visited (2) 400 Robots Destroyed (28) 140 Value Destroyed (587) 587 Prototype IDs (0) 0 Alien Tech Used (0) 0 Bonus (0) 0 TOTAL SCORE: 1127 Bonus ------- None Cogmind --------- Core Integrity 0/250 Matter 201/300 Energy 250/250 System Corruption 0% Temperature Cool (9) Movement Walking (120) Location -10/Mines Parts ------- > --- POWER (1) -------- Ion Engine > --- PROPULSION (2) --- Aluminum Leg Aluminum Leg > --- UTILITY (2) ------ Medium Storage Unit Signal Interpreter > --- WEAPON (2) ------- Grenade Launcher > --- INVENTORY (10) --- Ion Engine Light Treads Light Treads Light Treads High-capacity Storage Unit Huge Storage Unit Structural Scanner Datajack Peak State ------------ > --- POWER ------------ Ion Engine > --- PROPULSION ------- Aluminum Leg Aluminum Leg > --- UTILITY ---------- Medium Storage Unit Machine Analyzer > --- WEAPON ----------- Assault Rifle Light Assault Rifle > --- INVENTORY -------- Light Ion Engine Light Treads Light Treads Aluminum Leg Aluminum Leg High-capacity Storage Unit Huge Storage Unit Structural Scanner Light Assault Rifle Light Assault Rifle [Rating: 10] Favorites ----------- Power Ion Engine Engine Ion Engine Propulsion Aluminum Leg Leg Aluminum Leg Utility Medium Storage Unit Device Structural Scanner Storage Medium Storage Unit Processor Signal Interpreter Weapon Light Assault Rifle Energy Gun EM Pulse Gun Ballistic Gun Light Assault Rifle Launcher Grenade Launcher Build | -11 -10 -10 ------- Run | Yrd Mat Min Slots Evolved . | . . . Power . | . . . Propulsion . | . . . Utility . | . . . Weapon . | . . . Parts Attached 21 | 7 13 1 Power 4 | 2 2 . Engine 4 | 2 2 . Core . | . . . Reactor . | . . . Propulsion 6 | 1 5 . Treads . | . . . Leg 6 | 1 5 . Wheel . | . . . Hover . | . . . Flight . | . . . Utility 5 | 1 4 . Device 1 | . 1 . Storage 2 | 1 1 . Processor 2 | . 2 . Hackware . | . . . Protection . | . . . Artifact . | . . . Weapon 6 | 3 2 1 Energy Gun 1 | 1 . . Energy Cannon . | . . . Ballistic Gun 4 | 2 2 . Ballistic Cannon . | . . . Launcher 1 | . . 1 Special Weapon . | . . . Impact Weapon . | . . . Slashing Weapon . | . . . Piercing Weapon . | . . . Special Melee Weapon . | . . . Unidentified Prototypes . | . . . Parts Lost 4 | . 2 2 Power . | . . . Propulsion . | . . . Utility . | . . . Weapon 4 | . 2 2 Highest Loss Streak 2 | . 1 2 To Critical Strikes . | . . . Average Backups 8 | 3 9 8 Power . | . . 1 Propulsion 3 | 2 3 3 Utility 2 | . 2 3 Weapon . | . . . Tool/Special . | . . . Unused Backups 8 | . 2 6 Power . | . . . Propulsion 3 | . . 3 Utility 4 | . 2 2 Weapon . | . . . Tool/Special 1 | . . 1 Average Slot Usage (%) 98 | . 98 92 Engine 14 | . 14 14 Leg 27 | . 27 28 Device 3 | . 3 . Storage 14 | . 14 14 Processor 9 | . 8 14 Ballistic Gun 26 | . 26 17 Peak Build Rating 10 | 5 10 7 Average Rating 7 | 3 7 6 On Entrance 4 | . 5 7 Naked Turns . | . . . Heaviest Build 19 | 14 19 18 Greatest Support 20 | 10 20 20 Greatest Overweight (x) 1 | 1 1 . Average Overweight (x) . | . . . Largest Inventory Capacity 10 | 8 10 10 Average Capacity 9 | 6 9 10 Most Carried 10 | 5 10 9 Average Carried 8 | 3 9 8 Final Capacity 10 | 8 10 10 Final Carried 9 | 5 9 8 Class Distribution -------------------- 82% | Mutant 17% | Scavenger-Mutant Dominant Class ---------------- Mutant | -10/Materials Mutant | -10/Mines Resources | -11 -10 -10 ----------- Run | Yrd Mat Min Matter Collected 682 | 270 412 . Remotely . | . . . Salvage Created 807 | . 721 86 Parts 55 | . 45 10 Haulers Intercepted 2 | . 2 . Recyclers Shooed 1 | . . 1 Parts Field Recycled . | . . . Retrieved Matter . | . . . Parts Self-Destructed . | . . . Prevented . | . . . Kills | -11 -10 -10 ------- Run | Yrd Mat Min Combat Hostiles Destroyed 17 | . 16 1 Guns 15 | . 14 1 AOE 2 | . 2 . Classes Destroyed 8 | . 7 1 Worker 2 | . 2 . Tunneler 2 | . . 2 Hauler 2 | . 2 . Mechanic 1 | . 1 . Operator 2 | . 2 . Watcher 2 | . 2 . Swarmer 6 | . 6 . Grunt 11 | . 10 1 Best Kill Streak 11 | . 11 3 Combat Bots Only 7 | . 7 1 Max Kills in Single Turn 2 | . 2 1 Gunslinging . | . . . Exploded 2 | . 2 . Melee . | . . . Uniques/NPCs Destroyed . | . . . Combat | -11 -10 -10 -------- Run | Yrd Mat Min Hostile Shots Fired 101 | . 77 24 Missed 24 | . 19 5 Hits 77 | . 58 19 Projectile 77 | . 58 19 Critical Strikes 1 | . 1 . Damage Taken 1044 | . 750 294 Core 258 | . 189 69 Absorbed by Shields . | . . . Core Remaining (%) 100 | 100 . . Volleys Fired 101 | . 86 15 Largest 2 | . 2 2 Hottest 60 | . 60 40 Shots Fired 193 | . 171 22 Gun 189 | . 171 18 Cannon . | . . . Launcher 4 | . . 4 Special . | . . . Kinetic 185 | . 167 18 Thermal . | . . . Explosive 4 | . . 4 Electromagnetic 4 | . 4 . Robot Hit Streak 10 | . 9 10 Robot Miss Streak 6 | . 6 1 Penetration Max . | . . . Secondary Targets 3 | . 3 . Max Gunslinging Chain 1 | . 1 . Shots Hit Robots 114 | . 95 19 Core Hits 55 | . 48 7 Critical Kills 1 | . . 1 Critical Parts Destroyed 1 | . 1 . Critical Strikes 2 | . 1 1 Destroy 2 | . 1 1 Melee Attacks . | . . . Impact . | . . . Slashing . | . . . Piercing . | . . . Sneak Attacks . | . . . Combat Hostiles . | . . . Follow-up Attacks . | . . . Damage Inflicted 1373 | . 1029 344 Guns 1055 | . 932 123 Cannons . | . . . Explosions 318 | . 97 221 Melee . | . . . Ramming . | . . . Kinetic 1013 | . 890 123 Thermal 97 | . 97 . Explosive 221 | . . 221 Electromagnetic 42 | . 42 . Impact . | . . . Slashing . | . . . Piercing . | . . . Highest Corruption . | . . . Average Corruption . | . . . Corruption Purged . | . . . Corruption Blocked . | . . . Overload Shots . | . . . Overflow Damage 21 | . 21 . Projectiles . | . . . Explosions 21 | . 21 . Melee . | . . . Knockbacks . | . . . Impact . | . . . Kinetic . | . . . Secondary . | . . . Self-Inflicted Damage 191 | . 162 29 Shots 4 | . 2 2 Rammed . | . . . Targets Rammed . | . . . Kicked . | . . . Crushed . | . . . Highest Temperature 30 | . 30 26 Average Temperature 10 | . 9 11 Received Heat Transfer 357 | . 204 153 Siege Activations . | . . . Martial Activations . | . . . Shielding Activations . | . . . Robots Disrupted . | . . . Combat Hostiles . | . . . Robots Corrupted . | . . . Combat Hostiles . | . . . Parts Fried . | . . . Impact Corruptions . | . . . Robots Melted . | . . . Combat Hostiles . | . . . Parts Melted . | . . . Heat Transferred 50 | . 50 . Parts Sabotaged . | . . . Parts Stolen . | . . . Parts Stripped . | . . . Power Chain Reactions 1 | . 1 . Alert | -11 -10 -10 ------- Run | Yrd Mat Min Maximum Alert Level 1 | . 1 . Low Security (%) 90 | 100 89 100 Level 1 9 | . 10 . Level 2 . | . . . Level 3 . | . . . Level 4 . | . . . Level 5 . | . . . High Security . | . . . Max Security . | . . . Peak Influence 217 | . 217 47 Initial 24 | . . 24 Average 114 | . 123 29 Influence Increases 590 | . 531 59 Destroy 0b10 Robot/C 340 | . 320 20 Destroy 0b10 Robot/NC 55 | . 45 10 Destroy Leader 78 | . 78 . Successful Hack 6 | . 6 . Disable Machine 45 | . 30 15 Destroy Structure 36 | . 22 14 Lose Combat Pursuer 30 | . 30 . Influence Decreases 537 | . 468 69 Entered New Map 39 | . . 39 Time Decay 458 | . 448 10 Lost Part 40 | . 20 20 Squads Dispatched 3 | . 3 . Investigation 1 | . 1 . Extermination . | . . . Reinforcement 2 | . 2 . Assault . | . . . Garrison . | . . . Intercept . | . . . Searches Triggered . | . . . Construction Impeded . | . . . Haulers Reinforced . | . . . Active Scanning Responses . | . . . Cargo Convoy Interrupts . | . . . Stealth | -11 -10 -10 --------- Run | Yrd Mat Min Distress Signals 3 | . 3 . Communications Jammed . | . . . Distress Signals . | . . . Times Spotted 28 | . 26 2 Peak Tracking Total 7 | . 7 2 Tactical Retreats 2 | . 2 . Traps | -11 -10 -10 ------- Run | Yrd Mat Min Traps Triggered 4 | . 4 . Indirectly . | . . . Trap Hack Attempts . | . . . Triggered . | . . . Disarmed . | . . . Reprogrammed . | . . . Reused . | . . . Traps Extracted . | . . . Installed . | . . . Triggered . | . . . Machines | -11 -10 -10 ---------- Run | Yrd Mat Min Machines Disabled 3 | . 2 1 Max in Single Turn 1 | . 1 1 Machines Repaired . | . . . Machines Dismantled . | . . . Machines Sabotaged . | . . . Overloaded Fab Kills . | . . . Hacking | -11 -10 -10 --------- Run | Yrd Mat Min Machines Accessed 3 | . 3 . Terminals 2 | . 2 . Fabricators . | . . . Repair Stations . | . . . Recycling Units 1 | . 1 . Scanalyzers . | . . . Garrison Access . | . . . Total Hacks 3 | . 3 . Successful 2 | . 2 . Failed 1 | . 1 . Catastrophic 1 | . 1 . Database Lockouts . | . . . Manual 2 | . 2 . Terminals 2 | . 2 . Fabricators . | . . . Repair Stations . | . . . Recycling Units 1 | . 1 . Scanalyzers . | . . . Garrison Access . | . . . Terminal Hacks . | . . . Fabricator Hacks . | . . . Repair Station Hacks . | . . . Recycling Unit Hacks 1 | . 1 . Report Inventory 1 | . 1 . Scanalyzer . | . . . Garrison Access Hacks . | . . . Unauthorized Hacks 1 | . 1 . Terminals 1 | . 1 . Operators 1 | . 1 . Fabricators . | . . . Repair Stations . | . . . Recycling Units . | . . . Scanalyzers . | . . . Garrison Access . | . . . Data Cores Recovered . | . . . Used . | . . . Hacking Detections . | . . . Full Trace Events . | . . . Feedback Events . | . . . Feedback Blocked . | . . . Robot Schematics Acquired . | . . . Robots Built . | . . . Authchips . | . . . Time . | . . . Total Robot Build Rating . | . . . Part Schematics Acquired . | . . . Parts Built . | . . . Authchips . | . . . Time . | . . . Total Part Build Rating . | . . . Parts Repaired . | . . . Time . | . . . Parts Recycled . | . . . Recycled Matter . | . . . Retrieved Matter . | . . . Retrieved Components . | . . . Parts Scanalyzed . | . . . Part Schematics Acquired . | . . . Parts Damaged . | . . . Bothacking | -11 -10 -10 ------------ Run | Yrd Mat Min Used RIF Installer . | . . . Robots Hacked . | . . . Non-combat . | . . . Combat . | . . . Robot Hacks Applied . | . . . Relay Couplers Released . | . . . Fabnet Peak Effective % . | . . . Robots Rewired . | . . . Allies Hacked . | . . . Hacks Repelled . | . . . Allies | -11 -10 -10 -------- Run | Yrd Mat Min Total Allies . | . . . Largest Group . | . . . Highest-Rated Group . | . . . Highest-Rated Ally . | . . . Total Orders . | . . . Ally Attacks . | . . . Total Damage . | . . . Kills . | . . . Allies Corrupted . | . . . Allies Melted . | . . . Intel | -11 -10 -10 ------- Run | Yrd Mat Min Active Infowar (turns) 333 | . 333 . Structural 332 | . 332 . Machine Analysis 1 | . 1 . Robot Analysis Total . | . . . Derelict Logs Recovered . | . . . Drone Launches . | . . . Drone Recoveries . | . . . Exploration | -11 -10 -10 ------------- Run | Yrd Mat Min Turns Passed 1324 | 68 1222 34 Spaces Moved 772 | 40 731 1 Core 9 | 9 . . Treads . | . . . Legs 763 | 31 731 1 Wheels . | . . . Hover . | . . . Flight . | . . . Fastest Speed 50 | 50 120 120 Average Speed 121 | 141 120 120 Slowest Speed 190 | 190 190 120 Overloaded Moves . | . . . Propulsion Burnouts . | . . . Robots Hopped . | . . . Potential Cave-ins . | . . . Cave-ins Triggered . | . . . Exploration Rate (%) 35 | 4 96 5 Regions Visited 2 Branch Regions 1 Pre-discovered Areas . | . . . Known Exits Taken 1 | . 1 . Unknown Exits Taken 1 | 1 . . Scrap Searched . | . . . Spaces Dug . | . . . Terrain Destroyed 38 | . 21 17 Melee . | . . . Projectile . | . . . AOE 38 | . 21 17 Terrain Rammed . | . . . Walls Destroyed . | . . . Machines Disabled . | . . . Actions | -11 -10 -10 --------- Run | Yrd Mat Min Total 991 | 49 925 17 Wait 60 | . 60 . Move 770 | 39 730 1 Hop . | . . . Pick Up 22 | 3 19 . Fast Attach 7 | 5 2 . Attach 10 | . 9 1 Detach . | . . . Swap 11 | 2 9 . Drop 10 | . 10 . Fire 101 | . 86 15 Melee . | . . . Ram . | . . . Kick . | . . . Crush . | . . . Escape Stasis . | . . . Rewire . | . . . Trap . | . . . Miscellaneous . | . . . Route ------- -11/Scrapyard -10/Materials (discovered 4 exits: *Mat x3 / *Min) -10/Mines History --------- Turn | Location | Event 18 | -11/Scrapyard | Discovered new exit (range 15) 69 | -11/Scrapyard | Entered Materials 256 | -10/Materials | Core integrity fell below 50% 301 | -10/Materials | Build established: Mutant 311 | -10/Materials | Destroyed 7 combat bots 357 | -10/Materials | Discovered new exit (range 16) 530 | -10/Materials | Identified exit to Materials 576 | -10/Materials | Discovered new exit (range 16) 655 | -10/Materials | Identified exit to Mines 855 | -10/Materials | Discovered exit to Materials (range 15) 1159 | -10/Materials | Discovered exit to Materials (range 12) 1291 | -10/Materials | Entered Mines 1306 | -10/Mines | Core integrity fell below 20% 1308 | -10/Mines | Met a Derelict bent on vengeance 1325 | -10/Mines | Destroyed by G-47 Trooper with Particle Gun Last Messages --------------- 01262_ Ion Engine severed. 01264_ U-05 Engineer lays Concrete. 01264_ Triggered Blade Trap. 01264_ Massive razor-sharp blades shoot up from within the floor. 01264_ Lgt. Assault Rifle severed. 01264_ Aluminum Leg severed. 01264_ Ion Engine severed. 01265_ U-05 Engineer lays Concrete. 01268_ Acquired Ion Engine. 01272_ Acquired Lgt. Assault Rifle. 01274_ Acquired Ion Engine. LOCATION=MINES GOAL=ESCAPE Something is scanning the area. 01302_ G-34 Mercenary suffers critical hit (Destroy). 01302_ G-34 Mercenary destroyed. 01309_ Lgt. Assault Rifle destroyed. 01319_ T-07 Excavator destroyed. 01321_ Terminal disabled. 01325_ T-07 Excavator destroyed. Map ----- +----------------------------------------------------+ | ??????????????????????????????????????????????? | | ??????????????????????????????????????????????? | | ??????????????????????????????????????????????? | | ??????????????????????????????????????????????? | | ??????????????????????????????????????????????? | | ??????????????????????????????????????????????? | | ??????????????????????????????????????????????? | | ??????????????????????????????????????????????? | | ??????????????????????????????????????????????? | | ??????????????????????????????????????????????? | | ??????????????????????????????????????????????? | | ??????????????????????????????????????????????? | | ??????????????????????????????????????????????? | | ??????????????????????????????????????????????? | | ??????????????????????????????????????????????? | | ??????????????????????????????????????????????? | | ??????????????????????#???????????????????????? | | ???????????????####### ##?????????????????????? | | ????????????????*%= #?????????????????????? | | ????????????????# ! #?????????????????????? | | ????????????????# #?????????????????????? | | ????????????????# g #?????????? ?????????? | | ????????????????# * #?????? #?????????? | | ????????????????# =#### #?????????? | | ????????????????# *% """????????????? | | ?????????????????# @= """????????????? | | ?????????????????# ###### """????????????? | | ?????????????????# #?????????????????????? | | ?????????????????########?????????????????????? | | ??????????????????????????????????????????????? | | ??????????????????????????????????????????????? | | ??????????????????????????????????????????????? | | ??????????????????????????????????????????????? | | ??????????????????????????????????????????????? | | ??????????????????????????????????????????????? | | ??????????????????????????????????????????????? | | | | | | | | | | | | | | | | | | | | | | | | | | | | | +----------------------------------------------------+ Best States ------------- Heat Dissipation 25 Energy Generation 10 Energy Capacity 250 Matter Stores 300 Matter Capacity 300 Sight Range 16 Terrain Scan Density 10 Evasion (%) 55 Item Schematics ----------------- None Robot Schematics ------------------ None Fabricated ------------ Nothing Repaired ---------- Nothing Alien Tech Used ----------------- None Achievements -------------- None Challenges ------------ None Game ------ Seed BoltAmuletInverter Manual? 0 Play Time 00:18:02 Cumulative 18.1 hours Start 2025.10.18 @ 11:56:36 End 2025.10.18 @ 12:16:15 Sessions 1 Manual Loads 0 Difficulty Rogue Special Mode None Game No. 14 Rogue 14 Adventurer 0 Explorer 0 Win Type - Total 0 Types 0/0/0/0/0/0/0/0/0/0 Lore% 7 Gallery% 20 Achievement% 17 Wizard Run 0 Options --------- Layout 0 ASCII 0 Keyboard 0 Movement Mouse Keybinds 1 Fullscreen 2 Font 24/Smallcaps Map View 76x50 Zoom Use 0% Tactical HUD 1 Map Filters NONE Filters NONE Steam 1 RUN: 45e76c53-21ee-4fea-a8ee-4e6754d4f10a